fUSD/lending_fUSD_20251118
["ID","MTS","AMOUNT","RATE_DAILY","PERIOD"]
[394317141,1763444797207,-169.37976718,0.00016973,2]
[394317142,1763444797228,-189.6397139,0.00016973,2]
[394317143,1763444799294,-160.24661981,0.00016973,2]
[394317144,1763444799316,-139.75338019,0.00016973,2]
[394317145,1763444799668,2818.75083957,0.000169,2]
[394317146,1763444800785,-300.0,0.00016973,2]
[394317147,1763444801019,411.57395041,0.000169,2]
[394317148,1763444822220,196.6551,0.000169,2]
[394317149,1763444823163,-60.24661981,0.00016973,2]
[394317150,1763444823188,-201.22587266,0.00016985,2]
[394317154,1763444833540,-98.77412734,0.00016985,2]
[394317156,1763444835108,-150.0,0.00016986,2]
[394317157,1763444835135,-87.24484988,0.00016986,2]
[394317158,1763444835752,584.22,0.00013699,2]
[394317159,1763444837225,-62.75515012,0.00016986,2]
[394317160,1763444837247,-274.08617448,0.00016986,2]
[394317161,1763444837271,-32.94627757,0.00016986,2]
[394317162,1763444838439,1000.0,0.0001687,2]
[394317163,1763444839081,-170.42015175,0.00016986,2]
[394317164,1763444839103,-150.0,0.00016986,2]
[394317165,1763444839124,-84.69953509,0.00016986,2]
[394317167,1763444840616,-65.30046491,0.00016986,2]
[394317168,1763444840637,-97.90172611,0.00016986,2]
[394317169,1763444843442,-52.09827389,0.00016986,2]
[394317170,1763444843464,-150.0,0.00016986,2]
[394317171,1763444843486,-150.73376494,0.00016986,2]
[394317172,1763444843508,-67.448116,0.00016986,2]
[394317173,1763444845445,400.0,0.000166,6]
[394317174,1763444845620,-231.17758378,0.00016986,2]
[394317175,1763444845642,-33.4097123,0.00016986,2]
[394317178,1763444847537,800.0,0.000167,6]
[394317182,1763444849628,1300.0,0.000168,6]
[394317183,1763444851715,1700.0,0.000169,6]
[394317184,1763444861798,6200.01,0.000169,2]
[394317185,1763444861821,10000.01,0.000169,2]
[394317186,1763444861852,10000.01,0.000169,2]
[394317187,1763444861879,10000.01,0.000169,2]
[394317188,1763444861906,10000.01,0.000169,2]
[394317189,1763444861930,10000.01,0.000169,2]
[394317190,1763444861955,10000.01,0.000169,2]
[394317191,1763444861982,10000.01,0.000169,2]
[394317192,1763444862006,10000.01,0.000169,2]
[394317193,1763444862030,10000.01,0.000169,2]
[394317194,1763444872564,-4588.81011002,0.000169,2]
[394317195,1763444872672,-10000.01,0.000169,2]
[394317196,1763444872793,-10000.01,0.000169,2]
[394317197,1763444873155,-10000.01,0.000169,2]
[394317198,1763444873254,-10000.01,0.000169,2]
[394317199,1763444873382,-10000.01,0.000169,2]
[394317200,1763444873572,-10000.01,0.000169,2]
[394317201,1763444873691,-10000.01,0.000169,2]
[394317202,1763444873797,-10000.01,0.000169,2]
[394317203,1763444873947,-10000.01,0.000169,2]
[394317204,1763444878647,-10000.01,0.000169,2]
[394317205,1763444878773,-10000.01,0.000169,2]
[394317206,1763444878913,-10000.01,0.000169,2]
[394317207,1763444879039,-10000.01,0.000169,2]
[394317208,1763444879141,-10000.01,0.000169,2]
[394317209,1763444879255,-10000.01,0.000169,2]
[394317210,1763444879399,-10000.01,0.000169,2]
[394317211,1763444879522,-10000.01,0.000169,2]
[394317212,1763444879677,-10000.01,0.000169,2]
[394317213,1763444879789,-10000.01,0.000169,2]
[394317214,1763444887634,-300.0,0.00016899,2]
[394317215,1763444887671,-9400.01,0.000169,2]
[394317216,1763444887729,-10000.01,0.000169,2]
[394317217,1763444887882,-10000.01,0.000169,2]
[394317218,1763444887999,-10000.01,0.000169,2]
[394317219,1763444888104,-10000.01,0.000169,2]
[394317220,1763444888210,-10000.01,0.000169,2]
[394317221,1763444888330,-10000.01,0.000169,2]
[394317222,1763444888453,-10000.01,0.000169,2]
[394317223,1763444888565,-10000.01,0.000169,2]
[394317224,1763444888673,-10000.01,0.000169,2]
[394317225,1763444896678,-10000.01,0.000169,2]
[394317226,1763444896797,-10000.01,0.000169,2]
[394317227,1763444896915,-10000.01,0.000169,2]
[394317228,1763444897015,-10000.01,0.000169,2]
[394317229,1763444897133,-10000.01,0.000169,2]
[394317230,1763444897275,-10000.01,0.000169,2]
[394317231,1763444897417,-10000.01,0.000169,2]
[394317232,1763444897538,-10000.01,0.000169,2]
[394317233,1763444897651,-10000.01,0.000169,2]
[394317234,1763444897757,-10000.01,0.000169,2]
[394317235,1763444905743,-10000.01,0.000169,2]
[394317236,1763444905840,-10000.01,0.000169,2]
[394317237,1763444905998,-10000.01,0.000169,2]
[394317238,1763444906110,-10000.01,0.000169,2]
[394317239,1763444906243,-10000.01,0.000169,2]
[394317240,1763444906353,-10000.01,0.000169,2]
[394317241,1763444906461,-10000.01,0.000169,2]
[394317242,1763444906575,-10000.01,0.000169,2]
[394317243,1763444906685,-10000.01,0.000169,2]
[394317244,1763444906815,-10000.01,0.000169,2]
[394317245,1763444929868,-458.44633091,0.00016899,2]
[394317246,1763444929903,-500.0,0.00016899,2]
[394317247,1763444929944,-500.0,0.00016899,2]
[394317248,1763444929976,-500.0,0.00016899,2]
[394317249,1763444930009,-500.0,0.00016899,2]
[394317250,1763444930114,-500.0,0.00016899,2]
[394317251,1763444930144,-500.0,0.00016899,2]
[394317252,1763444930204,-500.0,0.00016899,2]
[394317253,1763444930214,-500.0,0.00016899,2]
[394317254,1763444930223,-3083.11733818,0.000169,2]
[394317255,1763444930266,-500.0,0.00016899,2]
[394317256,1763444930301,-500.0,0.000169,2]
[394317257,1763444930315,-8000.01,0.000169,2]
[394317258,1763444930343,-500.0,0.000169,2]
[394317259,1763444930367,-500.0,0.00016899,2]
[394317260,1763444930376,-8500.01,0.000169,2]
[394317261,1763444930394,-500.0,0.00016899,2]
[394317262,1763444930404,-9500.01,0.000169,2]
[394317263,1763444930441,-500.0,0.00016899,2]
[394317264,1763444930484,-600.0,0.00016899,2]
[394317265,1763444930493,-500.0,0.00016899,2]
[394317266,1763444930502,-7900.01,0.000169,2]
[394317267,1763444930535,-500.0,0.00016899,2]
[394317268,1763444930547,-9500.01,0.000169,2]
[394317269,1763444930848,-500.0,0.00016899,2]
[394317270,1763444930907,-9000.01,0.000169,2]
[394317271,1763444930921,-10000.01,0.000169,2]
[394317272,1763444930938,-10000.01,0.000169,2]
[394317273,1763444930973,-10000.01,0.000169,2]
[394317274,1763444931069,-167.82725145,0.000169,2]
[394317275,1763444938875,-10000.01,0.000169,2]
[394317276,1763444939021,-10000.01,0.000169,2]
[394317277,1763444939157,-10000.01,0.000169,2]
[394317278,1763444939265,-10000.01,0.000169,2]
[394317279,1763444940426,-10000.01,0.000169,2]
[394317280,1763444940553,-10000.01,0.000169,2]
[394317281,1763444940664,-10000.01,0.000169,2]
[394317282,1763444940789,-10000.01,0.000169,2]
[394317283,1763444940930,-3159.48530035,0.000169,2]
[394317284,1763444940963,-3681.0393993,0.000169,2]
[394317285,1763444941038,-2861.59113972,0.000169,2]
[394317286,1763444941066,-250.19785198,0.000169,2]
[394317287,1763444943849,532.15810147,0.00016973,2]
[394317288,1763444943886,507.32409942,0.00016973,2]
[394317295,1763444945768,4611.64598399,0.000169,2]
[394317296,1763444947068,500.0,0.00016899,2]
[394317297,1763444947103,500.0,0.00016899,2]
[394317298,1763444947133,500.0,0.00016899,2]
[394317299,1763444947183,500.0,0.00016899,2]
[394317300,1763444947216,500.0,0.00016899,2]
[394317301,1763444947247,500.0,0.00016899,2]
[394317302,1763444947280,500.0,0.00016899,2]
[394317303,1763444947319,500.0,0.00016899,2]
[394317304,1763444947353,348.88181512,0.00016899,2]
[394317305,1763444947621,11536.80977,7.945e-05,2]
[394317309,1763444960390,-151.11818488,0.00016899,2]
[394317310,1763444960424,-500.0,0.00016899,2]
[394317311,1763444960461,-500.0,0.00016899,2]
[394317312,1763444960507,-211.99770079,0.00016899,2]
[394317313,1763444960543,-500.0,0.00016899,2]
[394317314,1763444960576,-500.0,0.00016899,2]
[394317315,1763444960610,-500.0,0.00016899,2]
[394317316,1763444960642,-500.0,0.00016899,2]
[394317317,1763444960677,-500.0,0.00016899,2]
[394317318,1763444960716,-500.0,0.00016899,2]
[394317319,1763444960752,-500.0,0.00016899,2]
[394317320,1763444960933,273.77822866,0.00016899,2]
[394317321,1763444961066,-226.22177134,0.00016899,2]
[394317322,1763444961102,-500.0,0.00016899,2]
[394317323,1763444961142,-500.0,0.00016899,2]
[394317324,1763444961178,-500.0,0.00016899,2]
[394317325,1763444961221,500.0,0.00016899,2]
[394317326,1763444961265,500.0,0.00016899,2]
[394317327,1763444961302,639.97873667,0.00016899,2]
[394317328,1763444961337,500.0,0.00016899,2]
[394317329,1763444961369,500.0,0.00016899,2]
[394317330,1763444961424,500.0,0.00016899,2]
[394317331,1763444961496,500.0,0.00016899,2]
[394317332,1763444961606,-195.0,0.00016943,2]
[394317333,1763444975091,-1005.63037473,0.00016973,2]
[394317334,1763444982124,180.70034894,0.000169,2]
[394317335,1763444985064,500.0,0.00041691,30]
[394317336,1763444985296,500.0,0.00041691,30]
[394317337,1763444985562,500.0,0.00041691,30]
[394317338,1763444985918,587.90548019,0.00041691,30]
[394317340,1763444993927,500.0,0.00016873,2]
[394317341,1763444999995,9500.01,0.000169,2]
[394317342,1763445000020,10000.01,0.000169,2]
[394317343,1763445000043,10000.01,0.000169,2]
[394317344,1763445000066,3832.5657,0.000169,2]
[394317345,1763445011932,6167.4443,0.00016892,2]
[394317346,1763445011958,1048.461513,0.00016892,2]
[394317347,1763445017640,500.0,0.00041691,60]
[394317348,1763445017784,500.0,0.00041691,60]
[394317349,1763445018026,527.26511574,0.00041691,60]
[394317350,1763445019058,398.96750558,0.00016897,2]
[394317351,1763445020421,509.6745853,0.00041691,120]
[394317352,1763445023929,398.96750557,0.00016899,2]
[394317353,1763445024411,1000.0,0.000169,2]
[394317354,1763445028923,398.96750557,0.000169,2]
[394317355,1763445031288,500.0,0.000169,2]
[394317382,1763445031565,-195.0,0.00016977,2]
[394317384,1763445031574,-116.59028771,0.00016986,2]
[394317385,1763445031587,-175.82770282,0.0001699,2]
[394317386,1763445031596,-225.47000509,0.00016993,2]
[394317387,1763445031624,-159.70180762,0.00016993,2]
[394317388,1763445031634,-151.0,0.00016997,2]
[394317389,1763445031643,-300.0,0.00016998,2]
[394317390,1763445031653,-1200.0,0.00016998,2]
[394317391,1763445031663,-300.0,0.00016998,2]
[394317392,1763445031673,-1000.0,0.00016999,2]
[394317393,1763445031683,-500.0,0.00016999,2]
[394317394,1763445031692,-500.0,0.00016999,2]
[394317395,1763445031702,-337.97311388,0.00016999,2]
[394317396,1763445031711,-500.0,0.00016999,2]
[394317397,1763445031720,-500.0,0.00016999,2]
[394317398,1763445031730,-500.0,0.00016999,2]
[394317399,1763445031740,-500.0,0.00016999,2]
[394317400,1763445031751,-500.0,0.00016999,2]
[394317406,1763445031932,-500.0,0.00016999,2]
[394317408,1763445031953,-500.0,0.00016999,2]
[394317411,1763445031973,-500.0,0.00016999,2]
[394317414,1763445031994,-500.0,0.00016999,2]
[394317416,1763445032014,-110.37507851,0.00016999,2]
[394317418,1763445032040,-286.11200438,0.00016999,2]
[394317421,1763445032065,-103.51291711,0.00016999,2]
[394317422,1763445032075,-500.0,0.00016999,2]
[394317425,1763445032088,-252.74408847,0.00016999,2]
[394317426,1763445032098,-425.93349112,0.00016999,2]
[394317429,1763445032108,-500.0,0.00016999,2]
[394317430,1763445032117,-14.75914729,0.00016999,2]
[394317433,1763445032133,-363.348,0.00016999,2]
[394317435,1763445032145,-49.60691624,0.00016999,2]
[394317437,1763445032155,-221.95908376,0.00017,2]
[394317442,1763445032189,500.0,0.000169,2]
[394317494,1763445032745,500.0,0.000169,2]
[394317578,1763445033543,5254.64597028,0.000169,2]
[394317582,1763445033570,10000.01,0.000169,2]
[394317586,1763445033598,10000.01,0.000169,2]
[394317590,1763445033623,10000.01,0.000169,2]
[394317594,1763445033648,10000.01,0.000169,2]
[394317598,1763445033676,10000.01,0.000169,2]
[394317602,1763445033702,10000.01,0.000169,2]
[394317606,1763445033728,10000.01,0.000169,2]
[394317609,1763445033753,10000.01,0.000169,2]
[394317613,1763445033778,10000.01,0.000169,2]
[394317744,1763445035070,-487.73271424,0.000169,2]
[394317762,1763445037709,-90500.0,0.000169,2]
[394317765,1763445039601,-573757.53131548,0.000169,2]
[394317766,1763445039611,-2895222.07881406,0.00017,2]
[394317767,1763445039620,-40044.2541097,0.00017,2]
[394317768,1763445039630,-4785.9830566,0.00017,2]
[394317769,1763445039639,-256.0,0.00017,2]
[394317770,1763445039649,-336.54265187,0.00017,2]
[394317771,1763445039658,-269.2341215,0.00017,2]
[394317772,1763445039667,-151.0,0.00017,2]
[394317773,1763445039676,-219.27967415,0.00017233,2]
[394317774,1763445039686,-2818.75083956,0.00017251,2]
[394317775,1763445039695,-1871.51508657,0.00017259,2]
[394317776,1763445039708,-300.0,0.00017372,2]
[394317777,1763445039718,-300.0,0.00017372,2]
[394317778,1763445039727,-1000.0,0.00017412,2]
[394317779,1763445039736,-2455.68,0.00017481,2]
[394317780,1763445039746,-151.55760779,0.00017493,2]
[394317781,1763445039756,-150.0,0.00017542,2]
[394317782,1763445039766,-2818.75083956,0.00017602,2]
[394317783,1763445039776,-240.95229451,0.00017727,2]
[394317784,1763445039785,-300.0,0.00017727,2]
[394317785,1763445039795,-157.88,0.00017812,2]
[394317786,1763445039804,-2200.0,0.000179,6]
[394317787,1763445039814,-327.6239437,0.000179,2]
[394317788,1763445039823,-207.11990031,0.000179,3]
[394317789,1763445039832,-2818.75083956,0.00017953,2]
[394317790,1763445039842,-162.02315728,0.00017973,2]
[394317791,1763445039852,-500.0,0.00017973,2]
[394317792,1763445039861,-500.0,0.00017973,2]
[394317793,1763445039870,-500.0,0.00017973,2]
[394317794,1763445039880,-217.8176856,0.00017973,2]
[394317795,1763445039889,-500.0,0.00017973,2]
[394317796,1763445039901,-500.18779739,0.00017973,2]
[394317797,1763445039911,-166.37685578,0.00017973,2]
[394317799,1763445039920,-361.78381907,0.00017973,2]
[394317800,1763445039929,-500.0,0.00017973,2]
[394317801,1763445039939,-500.0,0.00017973,2]
[394317802,1763445039949,-500.0,0.00017973,2]
[394317803,1763445039962,-500.0,0.00017973,2]
[394317804,1763445039971,-500.0,0.00017973,2]
[394317805,1763445039980,-2324.59259705,0.00017973,2]
[394317806,1763445039990,-175.82770282,0.0001799,2]
[394317807,1763445040000,-151.0,0.00017997,2]
[394317808,1763445040009,-300.0,0.00017999,2]
[394317809,1763445040018,-300.0,0.00017999,2]
[394317810,1763445040029,-1955952.14967508,0.00018,2]
[394317811,1763445040040,-151.0,0.00018,2]
[394317812,1763445040049,-151.0,0.00018,2]
[394317813,1763445040059,-151.0,0.00018,2]
[394317814,1763445040068,-151.0,0.00018,2]
[394317815,1763445040078,-151.0,0.00018,2]
[394317816,1763445040088,-300.0,0.0001814,2]
[394317817,1763445040098,-3138.31,0.00018267,2]
[394317818,1763445040111,-2818.75083956,0.00018304,2]
[394317819,1763445040120,-150.0,0.00018337,2]
[394317820,1763445040130,-5408.32,0.00018356,2]
[394317821,1763445040139,-595.9134564,0.00018521,2]
[394317822,1763445040149,-1000.0,0.00018521,2]
[394317823,1763445040159,-1000.0,0.00018521,2]
[394317824,1763445040169,-1000.0,0.00018521,2]
[394317825,1763445040179,-1000.0,0.00018521,2]
[394317826,1763445040189,-9999.99,0.00018533,2]
[394317827,1763445040198,-150.99,0.00018533,2]
[394317828,1763445040208,-454.43,0.00018533,2]
[394317829,1763445040218,-420.0,0.00018566,2]
[394317830,1763445040227,-420.0,0.00018566,2]
[394317831,1763445040236,-300.0,0.00018589,2]
[394317832,1763445040246,-193.59926131,0.00018589,2]
[394317833,1763445040255,-195.0,0.00018589,2]
[394317834,1763445040264,-2818.75083956,0.00018655,2]
[394317835,1763445040274,-1680.0,0.00018658,2]
[394317836,1763445040284,-2500.0,0.00018674,2]
[394317837,1763445040293,-300.0,0.00018674,2]
[394317838,1763445040306,-250.0,0.00018674,2]
[394317839,1763445040316,-195.0,0.00018674,2]
[394317840,1763445040326,-250.0,0.00018685,2]
[394317841,1763445040335,-4236.7,0.00018745,2]
[394317842,1763445040346,-150.75,0.000188,2]
[394317843,1763445040356,-150.75,0.000188,2]
[394317844,1763445040365,-150.75,0.000188,2]
[394317845,1763445040374,-1000.0,0.00018978,2]
[394317846,1763445040385,-300.0,0.00018999,2]
[394317847,1763445040394,-15286.35603599,0.00019,2]
[394317848,1763445040403,-300.0,0.00019,2]
[394317849,1763445040414,-262.95867868,0.00019,2]
[394317850,1763445040423,-3027.7960274,0.00019,2]
[394317851,1763445040432,-234.12612966,0.00019,2]
[394317852,1763445040442,-459.68,0.00019005,2]
[394317853,1763445040451,-2818.75083956,0.00019006,2]
[394317854,1763445040460,-1141.94948175,0.00019068,2]
[394317855,1763445040473,-1500.0,0.00019068,2]
[394317856,1763445040484,-674.21664159,0.00019068,2]
[394317857,1763445040495,-1500.0,0.00019068,2]
[394317858,1763445040507,-500.0,0.0001935,2]
[394317859,1763445040517,-500.0,0.0001935,2]
[394317860,1763445040527,-480.67462218,0.0001935,2]
[394317861,1763445040536,-500.0,0.0001935,2]
[394317862,1763445040545,-311.74376832,0.0001935,2]
[394317863,1763445040555,-460.84951116,0.0001935,2]
[394317864,1763445040564,-503.31738035,0.0001935,2]
[394317865,1763445040573,-501.58323235,0.0001935,2]
[394317866,1763445040583,-504.13120605,0.0001935,2]
[394317867,1763445040594,-503.73371905,0.0001935,2]
[394317868,1763445040604,-501.95613346,0.0001935,2]
[394317869,1763445040613,-500.0,0.0001935,2]
[394317870,1763445040622,-2818.75083956,0.00019357,2]
[394317871,1763445040632,-394.48,0.00019483,2]
[394317872,1763445040641,-300.0,0.0001951,2]
[394317873,1763445040651,-157.88,0.00019593,2]
[394317874,1763445040660,-2000.0,0.00019616,2]
[394317875,1763445040670,-2000.0,0.00019616,2]
[394317876,1763445040679,-1684.13794,0.000197,2]
[394317877,1763445040688,-1684.13793,0.000197,2]
[394317878,1763445040697,-1684.13793,0.000197,2]
[394317879,1763445040708,-1684.13794,0.000197,2]
[394317880,1763445040718,-1684.13794,0.000197,2]
[394317881,1763445040727,-1684.13793,0.000197,2]
[394317882,1763445040736,-2818.75083956,0.00019708,2]
[394317883,1763445040745,-459.68,0.00019718,2]
[394317884,1763445040755,-200.0,0.00019858,2]
[394317885,1763445040765,-1000.0,0.00019898,2]
[394317886,1763445040775,-297.28368691,0.00019898,2]
[394317887,1763445040784,-551.45375901,0.00019973,2]
[394317888,1763445040794,-500.0,0.00019973,2]
[394317889,1763445040804,-300.0,0.00019989,2]
[394317890,1763445040814,-151304.11697322,0.0001999,2]
[394317891,1763445040824,-2818.75083956,0.00020059,2]
[394317892,1763445040834,-1633.9705709,0.00020164,2]
[394317893,1763445040845,-1300.13979988,0.00020164,2]
[394317894,1763445040854,-584.22,0.00020187,2]
[394317895,1763445040863,-587.0,0.00020278,2]
[394317896,1763445040872,-587.0,0.00020278,2]
[394317897,1763445040882,-3378.21,0.0002038,2]
[394317898,1763445040891,-459.68,0.00020431,2]
[394317899,1763445040900,-1500.0,0.00020446,2]
[394317900,1763445040909,-2351.0,0.0002048,2]
[394317901,1763445040918,-1000.0,0.00020521,2]
[394317902,1763445040928,-151.0,0.00020548,2]
[394317903,1763445040938,-394.48,0.00020565,2]
[394317904,1763445040948,-300.0,0.00020638,2]
[394317905,1763445040961,-4480.59481265,0.00020639,2]
[394317906,1763445040974,-666.65703019,0.00020639,2]
[394317907,1763445040985,-3547.5,0.00020639,2]
[394317908,1763445040997,-240.32898966,0.00020639,2]
[394317909,1763445041007,-1067.8971659,0.00020693,2]
[394317910,1763445041016,-166.66,0.00020788,2]
[394317911,1763445041026,-503.08130147,0.00020994,2]
[394317912,1763445041036,-426.33675874,0.00021015,2]
[394317913,1763445041045,-1366.84627898,0.00021068,2]
[394317914,1763445041054,-1000.0,0.00021087,2]
[394317915,1763445041139,-459.68,0.00021144,2]
[394317916,1763445041149,-193.67,0.00021181,2]
[394317917,1763445041158,-157.88,0.00021374,2]
[394317918,1763445041168,-1993.6860171,0.00021451,2]
[394317919,1763445041177,-166.66,0.00021474,2]
[394317920,1763445041187,-238.2800656,0.00021518,2]
[394317921,1763445041196,-394.48,0.00021648,2]
[394317922,1763445041205,-459.68,0.00021856,2]
[394317923,1763445041215,-5000.0,0.00021918,2]
[394317924,1763445041225,-179.85957124,0.00021999,2]
[394317925,1763445041235,-14517.1066969,0.00022,4]
[394317926,1763445041247,-789.95999999,0.00022,4]
[394317927,1763445041258,-868.344002,0.00022,4]
[394317932,1763445042941,-151.0,0.00018337,2]
[394317933,1763445042951,-343.83337734,0.00018566,2]
[394317934,1763445042965,-13671.23695594,0.00022,4]
[394317935,1763445042975,-3304.53,0.00022,7]
[394317936,1763445042984,-200.0,0.00022024,2]
[394317937,1763445042993,-823.0,0.00022148,2]
[394317938,1763445043003,-823.0,0.00022148,2]
[394317939,1763445043012,-166.66,0.0002216,2]
[394317940,1763445043022,-500.0,0.00022411,2]
[394317941,1763445043031,-3292.0,0.0002248,2]
[394317942,1763445043041,-518.8346363,0.0002271,2]
[394317943,1763445043051,-394.48,0.0002273,2]
[394317944,1763445043060,-166.66,0.00022846,2]
[394317945,1763445043069,-999.36062718,0.00023,2]
[394317946,1763445043078,-1000.0,0.00023196,2]
[394317947,1763445043088,-166.66,0.00023532,2]
[394317948,1763445043102,-394.48,0.00023813,2]
[394317949,1763445043111,-479.30025826,0.00023983,2]
[394317950,1763445043122,-1861.34059434,0.00024,5]
[394317951,1763445043132,-1152.0,0.00024191,2]
[394317952,1763445043142,-1152.0,0.00024191,2]
[394317953,1763445043151,-166.66,0.00024219,2]
[394317954,1763445043161,-275.57955207,0.00024655,7]
[394317955,1763445043170,-3792.0,0.00024658,7]
[394317956,1763445043180,-259.47,0.00024658,2]
[394317957,1763445043189,-1000.0,0.00024658,2]
[394317958,1763445043199,-151.0,0.00024658,7]
[394317959,1763445043209,-151.0,0.00024658,7]
[394317960,1763445043218,-151.0,0.00024658,7]
[394317961,1763445043228,-283.020499,0.00024658,7]
[394317962,1763445043236,-151.0,0.00024658,7]
[394317963,1763445043246,-151.0,0.00024658,7]
[394317964,1763445043256,-152.806644,0.00024658,7]
[394317965,1763445043266,-153.0,0.00024658,2]
[394317966,1763445043275,-153.0,0.00024658,2]
[394317967,1763445043284,-153.0,0.00024658,2]
[394317968,1763445043293,-153.0,0.00024658,2]
[394317969,1763445043302,-153.0,0.00024658,2]
[394317970,1763445043311,-154.098866,0.00024658,7]
[394317971,1763445043321,-151.0,0.00024658,7]
[394317972,1763445043330,-151.0,0.00024658,7]
[394317973,1763445043340,-242.121913,0.00024658,7]
[394317975,1763445043355,-242.121913,0.00024658,7]
[394317976,1763445043363,-242.121913,0.00024658,7]
[394317977,1763445043373,-242.121913,0.00024658,7]
[394317978,1763445043381,-153.0,0.00024658,2]
[394317979,1763445043391,-153.0,0.00024658,2]
[394317980,1763445043400,-153.0,0.00024658,2]
[394317981,1763445043410,-151.0,0.00024658,7]
[394317982,1763445043419,-151.0,0.00024658,7]
[394317983,1763445043429,-151.0,0.00024658,7]
[394317984,1763445043438,-151.0,0.00024658,7]
[394317985,1763445043448,-151.0,0.00024658,7]
[394317986,1763445043457,-151.0,0.00024658,7]
[394317987,1763445043467,-151.0,0.00024658,7]
[394317988,1763445043477,-151.0,0.00024658,7]
[394317989,1763445043486,-151.0,0.00024658,7]
[394317990,1763445043497,-160.501239,0.00024658,7]
[394317992,1763445043507,-151.0,0.00024658,7]
[394317993,1763445043516,-151.0,0.00024658,7]
[394317994,1763445043525,-151.0,0.00024658,7]
[394317995,1763445043534,-151.0,0.00024658,7]
[394317996,1763445043543,-222.92,0.00024658,2]
[394317997,1763445043552,-4609.0,0.00024675,2]
[394317998,1763445043560,-151.0,0.000248,7]
[394317999,1763445043570,-151.0,0.000248,7]
[394318000,1763445043579,-151.0,0.000248,7]
[394318001,1763445043588,-153.119757,0.000248,7]
[394318002,1763445043600,-151.0,0.000248,7]
[394318003,1763445043609,-151.0,0.000248,7]
[394318004,1763445043618,-242.121913,0.000248,7]
[394318005,1763445043627,-242.121913,0.000248,7]
[394318006,1763445043637,-242.121913,0.000248,7]
[394318007,1763445043646,-242.121913,0.000248,7]
[394318008,1763445043656,-151.0,0.000248,7]
[394318009,1763445043665,-151.0,0.000248,7]
[394318010,1763445043674,-249.632414,0.000248,7]
[394318011,1763445043683,-151.0,0.000248,7]
[394318012,1763445043693,-177.516476,0.000248,7]
[394318013,1763445043702,-151.0,0.000248,7]
[394318014,1763445043711,-151.0,0.000248,7]
[394318015,1763445043721,-151.0,0.000248,7]
[394318016,1763445043731,-151.0,0.000248,7]
[394318017,1763445043740,-151.0,0.000248,7]
[394318018,1763445043750,-151.0,0.000248,7]
[394318019,1763445043760,-38988.14856891,0.000248,3]
[394318020,1763445045594,-275.06670187,0.00024658,2]
[394318021,1763445045604,-151.0,0.00024675,2]
[394318022,1763445045613,-2167.22987361,0.000248,3]
[394318023,1763445045765,-5309.598,0.000248,3]
[394318024,1763445045777,-24502.25460849,0.000248,3]
[394318025,1763445045888,-3251.87776664,0.000248,3]
[394318102,1763445053563,500.0,0.00041691,120]
[394318103,1763445053794,500.0,0.00041691,120]
[394318104,1763445054036,500.0,0.00041691,120]
[394318105,1763445054337,500.0,0.00041691,120]